fUSD/lending_fUSD_20241018
["ID","MTS","AMOUNT","RATE_DAILY","PERIOD"]
[340428308,1729233031483,-212.12415269,0.000109,2]
[340428309,1729233031492,-429.30959146,0.000109,2]
[340428310,1729233031501,-3288.72855139,0.000109,2]
[340428311,1729233031510,-831.38615907,0.000109,2]
[340428312,1729233031520,-235.41,0.00010959,2]
[340428313,1729233031528,-160.52,0.00010959,2]
[340428314,1729233031538,-250.0,0.00010959,2]
[340428315,1729233031547,-230.48,0.00010959,2]
[340428316,1729233031555,-192.06,0.00010959,2]
[340428317,1729233031565,-160.05,0.00010959,2]
[340428318,1729233031574,-800.29,0.00010959,2]
[340428319,1729233031583,-500.0,0.00010973,2]
[340428320,1729233031592,-500.0,0.00010973,2]
[340428321,1729233031602,-3812.62917758,0.0001098,2]
[340428322,1729233031611,-1512.51,0.0001098,2]
[340428323,1729233031620,-177.66837526,0.0001099,2]
[340428324,1729233031629,-500.0,0.00010998,2]
[340428325,1729233031640,-500.0,0.00010998,2]
[340428326,1729233031649,-500.0,0.00010998,2]
[340428327,1729233031658,-247.431,0.00010998,2]
[340428328,1729233031667,-500.0,0.00010998,2]
[340428329,1729233031677,-542.39423322,0.00010998,2]
[340428330,1729233031686,-500.0,0.00010998,2]
[340428331,1729233031695,-500.0,0.00010998,2]
[340428332,1729233031704,-500.0,0.00010998,2]
[340428333,1729233031714,-500.0,0.00010998,2]
[340428334,1729233031723,-500.0,0.00010998,2]
[340428335,1729233031732,-472.01527197,0.00010998,2]
[340428336,1729233031741,-500.0,0.00010998,2]
[340428337,1729233031750,-524.25018531,0.00010998,2]
[340428338,1729233031759,-500.0,0.00010999,2]
[340428339,1729233031769,-500.0,0.00010999,2]
[340428340,1729233031778,-500.0,0.00010999,2]
[340428342,1729233031787,-500.0,0.00010999,2]
[340428344,1729233031796,-500.0,0.00010999,2]
[340428345,1729233031805,-500.0,0.00010999,2]
[340428347,1729233031815,-500.0,0.00010999,2]
[340428348,1729233031824,-500.0,0.00010999,2]
[340428349,1729233031833,-500.0,0.00010999,2]
[340428350,1729233031843,-175.66,0.00010999,2]
[340428351,1729233031852,-500.0,0.00010999,2]
[340428352,1729233031861,-500.0,0.00010999,2]
[340428353,1729233031870,-500.0,0.00010999,2]
[340428354,1729233031879,-500.0,0.00010999,2]
[340428355,1729233031892,-500.0,0.00010999,2]
[340428356,1729233031901,-500.0,0.00010999,2]
[340428357,1729233031910,-540.70084697,0.00010999,2]
[340428358,1729233031919,-500.0,0.00010999,2]
[340428359,1729233031928,-500.0,0.00010999,2]
[340428360,1729233031938,-500.0,0.00010999,2]
[340428361,1729233031948,-263.97155703,0.00010999,2]
[340428362,1729233031958,-500.0,0.00010999,2]
[340428363,1729233031968,-500.0,0.00010999,2]
[340428364,1729233031977,-500.0,0.00010999,2]
[340428365,1729233031987,-444.33762297,0.00010999,2]
[340428366,1729233031996,-510.31741824,0.00010999,2]
[340428367,1729233032005,-510.79561648,0.00010999,2]
[340428368,1729233032014,-500.0,0.00010999,2]
[340428369,1729233032023,-500.0,0.00010999,2]
[340428370,1729233032032,-500.0,0.00010999,2]
[340428371,1729233032041,-500.0,0.00010999,2]
[340428372,1729233032050,-500.0,0.00010999,2]
[340428373,1729233032059,-500.0,0.00010999,2]
[340428374,1729233032068,-512.45298173,0.00010999,2]
[340428375,1729233032077,-521.69288426,0.00010999,2]
[340428376,1729233032086,-229.97467291,0.00010999,2]
[340428377,1729233032095,-521.47943399,0.00010999,2]
[340428378,1729233032104,-522.98887157,0.00010999,2]
[340428379,1729233032113,-349.14433597,0.00010999,2]
[340428380,1729233032123,-500.0,0.00010999,2]
[340428381,1729233032132,-500.0,0.00010999,2]
[340428382,1729233032141,-500.0,0.00010999,2]
[340428383,1729233032150,-500.0,0.00010999,2]
[340428384,1729233032161,-500.0,0.00010999,2]
[340428385,1729233032172,-500.0,0.00010999,2]
[340428386,1729233032181,-555.42842187,0.00010999,2]
[340428387,1729233032193,-9935.56437219,0.00011,15]
[340428388,1729233032203,-368.82,0.00011,2]
[340428389,1729233032213,-19953.49477632,0.00011,2]
[340428390,1729233032225,-38374.99999966,0.00011,2]
[340428391,1729233032236,-136588.87194212,0.00011,2]
[340428392,1729233032247,-345.0,0.00011,2]
[340428393,1729233032270,-6836.00000001,0.00011,2]
[340428394,1729233032282,-1403.20682336,0.00011,2]
[340428395,1729233032296,-1338.4778,0.00011,2]
[340428396,1729233032394,-1863.15207544,0.00011,2]
[340428401,1729233037618,-525.0590977,0.00010999,2]
[340428402,1729233037628,-500.0,0.00010999,2]
[340428403,1729233037639,-90.79841708,0.00010999,2]
[340428404,1729233037706,-258.8770009,0.00010999,2]
[340428405,1729233037862,-167.48565041,0.00010999,2]
[340428406,1729233037871,-500.0,0.00010999,2]
[340428407,1729233037881,-483.12434959,0.00010999,2]
[340428424,1729233039374,-16.87565041,0.00010999,2]
[340428425,1729233039384,-366.06200359,0.00010999,2]
[340428426,1729233039395,-133.93799641,0.00010999,2]
[340428427,1729233039404,-500.0,0.00010999,2]
[340428428,1729233039414,-266.17550649,0.00010999,2]
[340428429,1729233039426,-233.82449351,0.00010999,2]
[340428430,1729233039435,-500.0,0.00010999,2]
[340428431,1729233039445,-276.38050649,0.00010999,2]
[340428432,1729233039503,-255.01903698,0.00010999,2]
[340428433,1729233039513,-500.0,0.00010999,2]
[340428434,1729233039523,-394.94096302,0.00010999,2]
[340428435,1729233039534,-105.05903698,0.00010999,2]
[340428436,1729233039543,-500.0,0.00010999,2]
[340428437,1729233039552,-500.0,0.00010999,2]
[340428438,1729233039562,-500.0,0.00010999,2]
[340428439,1729233039571,-293.98154994,0.00010999,2]
[340428440,1729233039580,-2925.51910043,0.00011,2]
[340428441,1729233039591,-10492.89999988,0.00011,2]
[340428442,1729233039626,-681.26488617,0.00011,2]
[340428472,1729233042539,-467.53023436,0.00010999,2]
[340428473,1729233042551,-64.18482602,0.00010999,2]
[340428474,1729233042560,-231.67517434,0.00011,2]
[340428475,1729233042706,-259.4880914,0.00011,2]
[340428476,1729233042718,-6040.0,0.00011,2]
[340428477,1729233042730,-7780.5062251,0.00011,2]
[340428478,1729233042741,-18790.09951717,0.00011,2]
[340428479,1729233042752,-1979.18188074,0.00011,2]
[340428480,1729233042764,-12431.61514992,0.00011,2]
[340428485,1729233045412,-250.10479714,0.00011,2]
[340428486,1729233045588,-282.58601024,0.00011,2]
[340428487,1729233045681,-5008.17589993,0.00011,2]
[340428488,1729233045693,-64002.02207683,0.00011,2]
[340428489,1729233045704,-5463.60550046,0.00011,2]
[340428490,1729233045723,-500.0,0.00010999,2]
[340428491,1729233045733,-11681.45042317,0.00011,2]
[340428495,1729233085578,978.43,9.541e-05,2]
[340428501,1729233657808,1000.0,0.0001,10]
[340428502,1729233679290,929.5,9.52e-05,2]
[340428503,1729233858323,-5760.47894048,0.00011,15]
[340428504,1729233867103,2880.23947024,0.00011,15]
[340428505,1729233929067,16844.71878828,0.000195,30]
[340428506,1729233989851,26440.11973511,0.00011,15]
[340428507,1729234032143,-163.59294037,0.00010464,2]
[340428508,1729234032164,-250.0,0.00010512,2]
[340428509,1729234032183,-250.0,0.00010564,2]
[340428510,1729234032204,-152.0,0.00010642,2]
[340428511,1729234032223,-1158.4109,0.000108,2]
[340428512,1729234032244,-218.07354232,0.00010892,2]
[340428513,1729234032264,-150.0,0.00010899,2]
[340428514,1729234032283,-566.85099059,0.000109,2]
[340428515,1729234107514,38220.05986756,0.00011,15]
[340428516,1729234190197,901.85,9.488e-05,2]
[340428520,1729234228157,8040.57092709,0.00011,15]
[340428531,1729234237842,-150.0,0.00010843,2]
[340428532,1729234237852,-103.7732008,0.00010899,2]
[340428533,1729234238063,-196.2267992,0.00010899,2]
[340428534,1729234238072,-1469.47350941,0.000109,2]
[340428535,1729234238082,-4306.38068618,0.000109,2]
[340428536,1729234238093,-5732.60371382,0.000109,2]
[340428537,1729234238102,-160.1453237,0.000109,2]
[340428538,1729234238111,-157.97960834,0.000109,2]
[340428539,1729234238121,-4435.03648634,0.000109,2]
[340428540,1729234238133,-1061.68321366,0.000109,2]
[340428541,1729234238143,-496.16698442,0.000109,2]
[340428547,1729234239682,-2983.02981558,0.000109,2]
[340428548,1729234239691,-730.6204,0.000109,2]
[340428549,1729234239700,-220.60246218,0.000109,2]
[340428550,1729234239710,-268.6748,0.000109,2]
[340428551,1729234239720,-2637.17696934,0.000109,2]
[340428552,1729234239732,-552.38427905,0.000109,2]
[340428553,1729234239743,-5250.70070712,0.000109,2]
[340428554,1729234239764,-948.0,0.000109,2]
[340428555,1729234239909,-4916.77137995,0.000109,2]
[340428556,1729234239919,-186.0241108,0.000109,2]
[340428557,1729234239929,-852.48416079,0.000109,2]
[340428558,1729234239939,-244.97,0.00010959,2]
[340428559,1729234239950,-150.0,0.00010959,2]
[340428560,1729234239960,-250.0,0.00010959,2]
[340428561,1729234239969,-500.0,0.00010973,2]
[340428562,1729234239979,-500.0,0.00010999,2]
[340428563,1729234239989,-500.0,0.00010999,2]
[340428564,1729234240000,-551.69,0.00010999,2]
[340428565,1729234240011,-500.0,0.00010999,2]
[340428566,1729234240021,-500.0,0.00010999,2]
[340428567,1729234240031,-500.0,0.00010999,2]
[340428568,1729234240041,-205.71585819,0.00010999,2]
[340428569,1729234240050,-500.0,0.00010999,2]
[340428570,1729234240060,-500.0,0.00010999,2]
[340428571,1729234240070,-500.0,0.00010999,2]
[340428572,1729234240080,-500.0,0.00010999,2]
[340428573,1729234240089,-500.0,0.00010999,2]
[340428574,1729234240098,-395.56872405,0.00010999,2]
[340428575,1729234240110,-104.43127595,0.00010999,2]
[340428576,1729234240119,-500.0,0.00010999,2]
[340428577,1729234240129,-500.0,0.00010999,2]
[340428578,1729234240138,-500.0,0.00010999,2]
[340428579,1729234240149,-500.0,0.00010999,2]
[340428580,1729234240158,-500.0,0.00010999,2]
[340428581,1729234240168,-459.47784588,0.00010999,2]
[340428582,1729234240177,-500.0,0.00010999,2]
[340428583,1729234240187,-500.0,0.00010999,2]
[340428584,1729234240195,-500.0,0.00010999,2]
[340428585,1729234240205,-528.12545338,0.00010999,2]
[340428586,1729234240214,-500.0,0.00010999,2]
[340428587,1729234240223,-500.0,0.00010999,2]
[340428588,1729234240232,-500.0,0.00010999,2]
[340428589,1729234240242,-500.0,0.00010999,2]
[340428590,1729234240251,-500.0,0.00010999,2]
[340428591,1729234240260,-500.0,0.00010999,2]
[340428592,1729234240269,-338.71309378,0.00010999,2]
[340428593,1729234240279,-323.442,0.00010999,2]
[340428594,1729234240288,-500.0,0.00010999,2]
[340428595,1729234240298,-500.0,0.00010999,2]
[340428596,1729234240308,-500.0,0.00010999,2]
[340428597,1729234240317,-535.63162407,0.00010999,2]
[340428598,1729234240327,-500.0,0.00010999,2]
[340428599,1729234240336,-500.0,0.00010999,2]
[340428600,1729234240346,-500.0,0.00010999,2]
[340428601,1729234240355,-500.0,0.00010999,2]
[340428602,1729234240364,-500.0,0.00010999,2]
[340428603,1729234240374,-500.0,0.00010999,2]
[340428604,1729234240383,-500.0,0.00010999,2]
[340428605,1729234240392,-500.0,0.00010999,2]
[340428606,1729234240402,-500.0,0.00010999,2]
[340428607,1729234240411,-500.0,0.00010999,2]
[340428608,1729234240420,-500.0,0.00010999,2]
[340428609,1729234240429,-500.0,0.00010999,2]
[340428610,1729234240439,-500.0,0.00010999,2]
[340428611,1729234240448,-500.0,0.00010999,2]
[340428612,1729234240457,-457.14524599,0.00010999,2]
[340428613,1729234240467,-533.65649169,0.00010999,2]
[340428614,1729234240476,-513.74098963,0.00010999,2]
[340428615,1729234240485,-500.0,0.00010999,2]
[340428616,1729234240494,-500.0,0.00010999,2]
[340428617,1729234240503,-500.0,0.00010999,2]
[340428618,1729234240513,-500.0,0.00010999,2]
[340428619,1729234240523,-500.0,0.00010999,2]
[340428620,1729234240533,-500.0,0.00010999,2]
[340428621,1729234240542,-500.0,0.00010999,2]
[340428622,1729234240551,-500.0,0.00010999,2]
[340428623,1729234240561,-500.0,0.00010999,2]
[340428624,1729234240570,-500.0,0.00010999,2]
[340428625,1729234240579,-49.22024796,0.00010999,2]
[340428630,1729234242939,-450.77975204,0.00010999,2]
[340428631,1729234242948,-99.22024696,0.00010999,2]
[340428632,1729234242988,-400.77975304,0.00010999,2]
[340428633,1729234242998,-163.96919579,0.00010999,2]
[340428634,1729234243011,-336.03080421,0.00010999,2]
[340428635,1729234243020,-264.22995566,0.00010999,2]
[340428656,1729234245850,-500.0,0.00010973,2]
[340428657,1729234245859,-43.8800221,0.00010999,2]
[340428658,1729234245978,-191.89002224,0.00010999,2]
[340428659,1729234245988,-500.0,0.00010999,2]
[340428660,1729234245997,-500.0,0.00010999,2]
[340428661,1729234246007,-500.0,0.00010999,2]
[340428662,1729234246016,-500.0,0.00010999,2]
[340428663,1729234246026,-500.0,0.00010999,2]
[340428664,1729234246035,-510.57300853,0.00010999,2]
[340428665,1729234246044,-500.0,0.00010999,2]
[340428666,1729234246054,-500.0,0.00010999,2]
[340428667,1729234246063,-500.0,0.00010999,2]
[340428668,1729234246073,-533.1471568,0.00010999,2]
[340428669,1729234246082,-500.0,0.00010999,2]
[340428670,1729234246091,-500.0,0.00010999,2]
[340428671,1729234246101,-500.0,0.00010999,2]
[340428672,1729234246111,-500.0,0.00010999,2]
[340428673,1729234246120,-500.0,0.00010999,2]
[340428674,1729234246129,-500.0,0.00010999,2]
[340428675,1729234246139,-500.0,0.00010999,2]
[340428676,1729234246149,-500.0,0.00010999,2]
[340428677,1729234246158,-500.0,0.00010999,2]
[340428678,1729234246169,-500.0,0.00010999,2]
[340428679,1729234246179,-527.71508547,0.00010999,2]
[340428680,1729234246187,-500.0,0.00010999,2]
[340428681,1729234246196,-363.74443427,0.00010999,2]
[340428682,1729234246205,-523.50205601,0.00010999,2]
[340428683,1729234246214,-500.0,0.00010999,2]
[340428684,1729234246223,-548.66895978,0.00010999,2]
[340428685,1729234246232,-545.56387108,0.00010999,2]
[340428686,1729234246241,-500.0,0.00010999,2]
[340428687,1729234246250,-462.15,0.00010999,2]
[340428688,1729234246259,-532.84104412,0.00010999,2]
[340428689,1729234246268,-544.42054729,0.00010999,2]
[340428690,1729234246277,-500.0,0.00010999,2]
[340428691,1729234246286,-272.44930991,0.00010999,2]
[340428692,1729234246295,-500.0,0.00010999,2]
[340428693,1729234246304,-500.0,0.00010999,2]
[340428694,1729234246313,-308.49421158,0.00010999,2]
[340428695,1729234246322,-500.0,0.00010999,2]
[340428696,1729234246331,-500.0,0.00010999,2]
[340428697,1729234246340,-575.42,0.00010999,2]
[340428698,1729234246349,-500.0,0.00010999,2]
[340428699,1729234246358,-500.0,0.00010999,2]
[340428700,1729234246367,-1.42029292,0.00010999,2]
[340428704,1729234268572,550.0,0.0001,2]
[340428708,1729234293453,-11069.45900669,0.00011,15]
[340428710,1729234298275,-357.0158,0.000109,2]
[340428711,1729234298296,-500.0,0.000109,2]
[340428712,1729234298317,-142.9842,0.000109,2]
[340429978,1729234457298,500.0,0.0001,2]
[340430009,1729234740140,1041.89,8.987e-05,2]
[340430018,1729234803122,504.16659606,0.0001356,30]
[340430027,1729234870687,250.0,0.00010304,2]
[340430030,1729234889239,170.11,0.00010346,2]
[340430031,1729234890480,200.0,0.000101,3]
[340430033,1729234892583,500.0,0.000102,3]
[340430034,1729234894683,700.0,0.000103,3]
[340430035,1729234896826,1000.0,0.000104,3]
[340430036,1729234898023,669.0,0.00025,120]
[340430037,1729234898932,1200.0,0.000105,3]
[340430042,1729234927210,162.42,0.00010139,2]
[340430053,1729235038964,171.47,0.00010132,2]
[340430054,1729235125954,1025.75563367,0.000215,40]
[340430055,1729235194792,562.06,0.00010239,2]
[340430056,1729235210198,375.48,0.00010312,2]
[340430057,1729235230939,989.79,8.382e-05,2]
[340430058,1729235241137,-150.0,0.00010434,2]
[340430059,1729235241158,-3282.8596758,0.000105,2]
[340430060,1729235371623,250.0,0.00010284,2]
[340430063,1729235431912,-150.0,0.00010436,2]
[340430064,1729235431922,-190.78735789,0.000105,2]
[340430065,1729235432075,-17.41466631,0.000105,2]
[340430066,1729235432084,-685.96321687,0.00010646,2]
[340430067,1729235432095,-303.82678313,0.00010646,2]
[340430068,1729235432105,-606.4301,0.00010873,2]
[340430069,1729235432116,-601.4324,0.000109,2]
[340430070,1729235432125,-176.4447,0.000109,2]
[340430071,1729235432134,-1330.0743,0.000109,2]
[340430072,1729235432144,-1710.03071806,0.000109,2]
[340430073,1729235432153,-161.56026729,0.000109,2]
[340430074,1729235432163,-988.87254709,0.000109,2]
[340430075,1729235432174,-331.90745291,0.000109,2]
[340430076,1729235432184,-150.0,0.00010958,2]
[340430077,1729235432193,-159.8,0.00010959,2]
[340430078,1729235432203,-1309.66391787,0.00010959,14]
[340430079,1729235432214,-663.16608213,0.00010959,14]
[340430080,1729235432225,-535.00166787,0.00010959,2]
[340430081,1729235432235,-78.97833213,0.00010959,2]
[340430082,1729235432245,-256.96,0.00010959,2]
[340430083,1729235432254,-164.06166787,0.00010959,2]
[340430084,1729235432264,-255.5570155,0.00010959,2]
[340430085,1729235432275,-554.04576987,0.00010959,2]
[340430086,1729235432286,-420.88816235,0.00010959,2]
[340430087,1729235432317,-605.44738441,0.00010959,2]
[340430088,1729235432326,-150.0,0.00010959,2]
[340430089,1729235432335,-356.65,0.00010959,2]
[340430090,1729235432344,-250.0,0.00010959,2]
[340430091,1729235432354,-158.31,0.00010959,2]
[340430092,1729235432364,-284.98567359,0.00010959,2]
[340430093,1729235432375,-395.74432641,0.00010959,2]
[340430094,1729235432384,-150.99,0.00010973,2]
[340430095,1729235432393,-93.35567367,0.00010973,2]
[340430100,1729235438001,-500.0,0.00010973,2]
[340430101,1729235438010,-51.41305897,0.0001099,2]
[340430102,1729235438021,-537.13002854,0.0001099,2]
[340430103,1729235438054,-318.65549574,0.0001099,2]
[340430104,1729235438063,-496.5957384,0.0001099,2]
[340430105,1729235438075,-3.3942616,0.0001099,2]
[340430106,1729235438086,-249.7048047,0.0001099,2]
[340430107,1729235438096,-249.7048047,0.0001099,2]
[340430108,1729235438105,-249.7048047,0.0001099,2]
[340430109,1729235438116,-500.0,0.00010998,2]
[340430110,1729235438126,-168.59162465,0.00010998,2]
[340430111,1729235438135,-405.09922378,0.00010998,2]
[340430112,1729235438296,-94.90077622,0.00010998,2]
[340430113,1729235438306,-434.05701784,0.00010998,2]
[340430114,1729235438316,-500.0,0.00010998,2]
[340430115,1729235438325,-500.0,0.00010998,2]
[340430116,1729235438335,-500.0,0.00010998,2]
[340430117,1729235438346,-500.0,0.00010998,2]
[340430118,1729235438355,-500.0,0.00010998,2]
[340430119,1729235438364,-27111.20267412,0.00010998,2]
[340430120,1729235438375,-275.96458678,0.00010998,2]
[340430121,1729235438387,-3415.43847679,0.00010998,2]
[340430122,1729235438397,-310.24010705,0.00010998,2]
[340430123,1729235438408,-3680.27212058,0.00010998,2]
[340430124,1729235438424,-35840.61972414,0.00010998,2]
[340430125,1729235438434,-54777.50748344,0.00010999,2]
[340430126,1729235438443,-310.402,0.00010999,2]
[340430127,1729235438452,-169.391,0.00010999,2]
[340430128,1729235438461,-500.0,0.00010999,2]
[340430129,1729235438471,-500.0,0.00010999,2]
[340430130,1729235438480,-500.0,0.00010999,2]
[340430131,1729235438489,-500.0,0.00010999,2]
[340430132,1729235438498,-500.0,0.00010999,2]
[340430133,1729235438508,-273.65970708,0.00010999,2]
[340430134,1729235438517,-500.0,0.00010999,2]
[340430135,1729235438527,-501.96846066,0.00010999,2]
[340430136,1729235438536,-500.0,0.00010999,2]
[340430137,1729235438545,-500.0,0.00010999,2]
[340430138,1729235438554,-500.0,0.00010999,2]
[340430139,1729235438563,-500.0,0.00010999,2]
[340430140,1729235438574,-500.0,0.00010999,2]
[340430141,1729235438583,-500.0,0.00010999,2]
[340430142,1729235438593,-242.52,0.00010999,2]
[340430143,1729235438602,-500.0,0.00010999,2]
[340430144,1729235438612,-500.0,0.00010999,2]
[340430145,1729235438621,-500.0,0.00010999,2]
[340430146,1729235438630,-500.0,0.00010999,2]
[340430147,1729235438639,-500.0,0.00010999,2]
[340430148,1729235438648,-500.0,0.00010999,2]
[340430149,1729235438657,-500.0,0.00010999,2]
[340430150,1729235438666,-500.0,0.00010999,2]
[340430151,1729235438675,-500.0,0.00010999,2]
[340430152,1729235438684,-536.28,0.00010999,2]
[340430153,1729235438693,-500.0,0.00010999,2]
[340430154,1729235438702,-500.0,0.00010999,2]
[340430155,1729235438711,-150.8324182,0.00010999,2]
[340430156,1729235438721,-506.34348769,0.00010999,2]
[340430157,1729235438730,-537.37451395,0.00010999,2]
[340430158,1729235438739,-500.0,0.00010999,2]
[340430159,1729235438748,-500.0,0.00010999,2]
[340430160,1729235438757,-500.0,0.00010999,2]
[340430161,1729235438766,-500.0,0.00010999,2]
[340430162,1729235438776,-500.0,0.00010999,2]
[340430163,1729235438784,-500.0,0.00010999,2]
[340430164,1729235438794,-500.0,0.00010999,2]
[340430165,1729235438803,-332.27802836,0.00010999,2]
[340430166,1729235438812,-500.0,0.00010999,2]
[340430167,1729235438821,-157.4623914,0.00010999,2]
[340430168,1729235438834,-500.0,0.00010999,2]
[340430169,1729235438843,-500.0,0.00010999,2]
[340430170,1729235438852,-500.0,0.00010999,2]
[340430171,1729235438861,-500.0,0.00010999,2]
[340430172,1729235438873,-500.0,0.00010999,2]
[340430173,1729235438882,-500.0,0.00010999,2]
[340430174,1729235438891,-500.0,0.00010999,2]
[340430175,1729235438900,-500.0,0.00010999,2]
[340430176,1729235438911,-500.0,0.00010999,2]
[340430177,1729235438922,-500.0,0.00010999,2]
[340430178,1729235438931,-500.0,0.00010999,2]
[340430179,1729235438941,-500.0,0.00010999,2]
[340430180,1729235438950,-500.0,0.00010999,2]
[340430181,1729235438959,-500.0,0.00010999,2]
[340430182,1729235438968,-500.0,0.00010999,2]
[340430183,1729235438977,-500.0,0.00010999,2]
[340430184,1729235438986,-500.0,0.00010999,2]
[340430185,1729235438995,-500.0,0.00010999,2]
[340430186,1729235439004,-637.50219916,0.00010999,2]
[340430187,1729235439014,-500.0,0.00010999,2]
[340430188,1729235439023,-500.0,0.00010999,2]
[340430189,1729235439032,-500.0,0.00010999,2]
[340430190,1729235439046,-363.96,0.00010999,2]
[340430191,1729235439055,-500.0,0.00010999,2]
[340430192,1729235439065,-500.0,0.00010999,2]
[340430193,1729235439074,-500.0,0.00010999,2]
[340430194,1729235439086,-500.0,0.00010999,2]
[340430195,1729235439095,-500.0,0.00010999,2]
[340430196,1729235439104,-500.0,0.00010999,2]
[340430197,1729235439114,-500.0,0.00010999,2]
[340430198,1729235439122,-599.34,0.00010999,2]
[340430199,1729235439131,-500.0,0.00010999,2]
[340430200,1729235439141,-355.1494441,0.00010999,2]
[340430201,1729235439151,-500.0,0.00010999,2]
[340430202,1729235439160,-150.0,0.00010999,2]
[340430203,1729235439169,-150.84140276,0.00010999,2]
[340430204,1729235439178,-500.0,0.00010999,2]
[340430205,1729235439187,-172.80953471,0.00010999,2]
[340430206,1729235439196,-200.0,0.00010999,2]
[340430207,1729235439205,-216.90567112,0.00010999,2]
[340430208,1729235439215,-10000.0,0.00011,2]
[340430209,1729235439228,-194.4586946,0.00011,2]
[340430210,1729235439236,-490238.5987728,0.00011,2]
[340430211,1729235439409,-49022.48890501,0.00011,2]
[340430214,1729235440033,-500.0,0.00010973,2]
[340430215,1729235440046,-4538.76056,0.00011,2]
[340430216,1729235440057,-2616.89999991,0.00011,2]
[340430217,1729235440068,-3802.0,0.00011,2]
[340430218,1729235440196,-3462.57617148,0.00011,2]
[340430219,1729235443278,-611.84417158,0.00010973,2]
[340430220,1729235443314,-9388.15582842,0.00010973,2]
[340430221,1729235443324,-37780.51725085,0.00011,2]
[340430223,1729235445973,-1203.491268,0.00010973,2]
[340430224,1729235446139,-8796.508732,0.00010973,2]
[340430225,1729235446148,-52732.53178577,0.00011,2]
[340430226,1729235446159,-435.93874686,0.00011,2]
[340430227,1729235446191,-32700.00002493,0.00011,2]
[340430228,1729235446329,-523.53231085,0.00011,2]
[340430229,1729235860493,187.74,0.00010243,2]
[340430230,1729235864517,946.52,8.325e-05,2]
[340430231,1729236015473,205.46,0.00010305,2]
[340430232,1729236054227,250.0,0.0001021,2]
[340430233,1729236081481,550.0,0.0001,2]
[340430234,1729236123636,250.0,0.00010207,2]
[340430235,1729236309155,161.57,0.0001,2]
[340430236,1729236376534,899.19,8.219e-05,2]
[340430237,1729236385971,1000.0,9.987e-05,2]
[340430238,1729236424300,150.0,0.00010399,2]
[340430239,1729236451137,-429.691158,0.00010423,2]
[340430240,1729236451158,-899.19,0.00010476,2]
[340430241,1729236451177,-2460.78939879,0.00010789,2]
[340430242,1729236472087,171.47,9.999e-05,2]
[340430243,1729236508860,187.74,9.966e-05,2]
[340430257,1729236632135,-150.0,0.00010713,2]
[340430259,1729236632145,-417.14,0.0001078,2]
[340430261,1729236632185,-574.6578,0.0001078,2]
[340430262,1729236632194,-3523.3564,0.0001078,2]
[340430263,1729236632203,-1000.0,0.0001078,2]
[340430264,1729236632213,-205.70584743,0.00010789,2]
[340430265,1729236632223,-3883.7576,0.000108,2]
[340430266,1729236632233,-343.39898002,0.0001087,2]
[340430267,1729236632242,-500.0,0.00010873,2]
[340430268,1729236632252,-300.0,0.00010879,2]
[340430269,1729236632261,-150.0,0.00010879,2]
[340430270,1729236632271,-15049.24387239,0.0001088,2]
[340430271,1729236632283,-964.46147219,0.0001088,2]
[340430272,1729236632294,-312.02099594,0.0001088,2]